bitfinex-derivatives/quotes_SOLF0:USTF0_20260213
["timestamp","ask_amount","ask_price","bid_price","bid_amount"]
[1770978289906,11.56555516,79.947,79.901,11.75172563]
[1770978291812,11.2669,79.94,79.901,11.75172563]
[1770978292015,11.56555516,79.939,79.901,11.75172563]
[1770978293014,11.56555516,79.939,79.902,11.2721]
[1770978299009,11.2659,79.947,79.91,3.43644281]
[1770978299214,11.56555516,79.964,79.921,11.75172563]
[1770978299613,11.2645,79.957,79.921,11.75172563]
[1770978301617,22.82915516,79.964,79.921,11.75172563]
[1770978301818,12.21284097,79.978,79.931,12.383207]
[1770978302324,12.21284097,79.978,79.94,3.43644281]
[1770978302625,12.21284097,79.978,79.931,12.383207]
[1770978302821,11.2623,79.973,79.932,11.2678]
[1770978303122,11.2623,79.973,79.933,12.383207]
[1770978303824,11.2623,79.973,79.94,3.43644281]
[1770978304122,23.47564097,79.969,79.933,12.383207]
[1770978304924,12.21284097,79.969,79.933,12.383207]
[1770978305921,12.21284097,79.959,79.911,12.383207]
[1770978306321,11.2648,79.955,79.914,12.383207]
[1770978306629,12.21284097,79.939,79.89,3.43644281]
[1770978306917,12.21284097,79.939,79.9,3.43644281]
[1770978307120,12.21284097,79.939,79.9,15.81964981]
[1770978307922,12.21284097,79.939,79.9,12.383207]
[1770978308823,12.21284097,79.937,79.9,12.383207]
[1770978309127,12.21284097,79.937,79.89,3.43644281]
[1770978309326,12.21284097,79.937,79.89,15.81964981]
[1770978310028,12.21284097,79.937,79.9,3.43644281]
[1770978311126,12.21284097,79.937,79.902,11.2721]
[1770978311328,12.21284097,79.945,79.903,12.383207]
[1770978311527,15.64928378,79.94,79.903,12.383207]
[1770978312125,12.21284097,79.94,79.903,12.383207]
[1770978312830,15.64928378,79.94,79.903,12.383207]
[1770978313728,23.47774097,79.954,79.912,12.383207]
[1770978314426,11.2657,79.948,79.912,12.383207]
[1770978314627,12.21284097,79.947,79.9,3.43644281]
[1770978315016,12.21284097,79.947,79.901,12.383207]
[1770978315722,11.2664,79.944,79.901,12.383207]
[1770978316423,12.21284097,79.937,79.897,11.2729]
[1770978316929,12.21284097,79.937,79.9,3.43644281]
[1770978317327,12.21284097,79.937,79.901,23.655507]
[1770978319320,11.2674,79.936,79.901,11.2723]
[1770978319629,22.525,79.971,79.89,3.43644281]
[1770978319630,12.21284097,79.929,79.89,3.43644281]
[1770978319833,12.21284097,79.929,79.889,12.383207]
[1770978320730,12.21284097,79.929,79.89,11.2738]
[1770978321126,12.21284097,79.929,79.89,14.71024281]
[1770978321323,12.21284097,79.929,79.891,12.383207]
[1770978321727,12.21284097,79.924,79.89,3.43644281]
[1770978325222,12.21284097,79.924,79.892,12.383207]
[1770978326736,3.43644281,79.93,79.893,11.2733]
[1770978327036,12.21284097,79.927,79.894,12.383207]
[1770978327427,12.21284097,79.936,79.9,15.81964981]
[1770978327626,3.43644281,79.92,79.891,12.383207]
[1770978327932,12.21284097,79.929,79.891,12.383207]
[1770978328829,12.21284097,79.926,79.891,12.383207]
[1770978331038,11.2691,79.924,79.891,12.383207]
[1770978331825,12.21284097,79.926,79.891,12.383207]
[1770978333028,12.21284097,79.926,79.892,11.2735]
[1770978333431,11.269,79.925,79.891,12.383207]
[1770978333937,22.85974919,79.925,79.891,12.383207]
[1770978334338,11.59074919,79.925,79.892,11.2735]
[1770978337036,11.59074919,79.925,79.893,11.3224289]
[1770978337433,11.268,79.932,79.895,11.3224289]
[1770978339036,11.45365523,79.928,79.886,11.2743]
[1770978339936,11.45365523,79.928,79.895,22.5955289]
[1770978340238,11.45365523,79.928,79.895,11.3224289]
[1770978341838,11.2695,79.922,79.895,11.3224289]
[1770978342834,11.45365523,79.928,79.884,22.88096775]
[1770978343040,22.72455523,79.912,79.873,11.3224289]
[1770978343440,11.45365523,79.912,79.879,11.3224289]
[1770978343843,11.45365523,79.912,79.88,3.43644281]
[1770978344839,11.45365523,79.912,79.88,14.71164281]
[1770978346244,11.27,79.918,79.884,11.3224289]
[1770978346743,11.45365523,79.923,79.885,11.2745]
[1770978347547,11.2686,79.928,79.892,11.3224289]
[1770978347746,11.2686,79.928,79.894,11.3224289]
[1770978348442,11.2686,79.928,79.896,11.3224289]
[1770978349342,11.2686,79.928,79.9,3.43644281]
[1770978351144,11.2686,79.928,79.899,11.55853885]
[1770978351339,11.2686,79.928,79.897,11.3224289]
[1770978351340,11.2686,79.928,79.9,11.55853885]
[1770978353649,11.2686,79.928,79.9,11.3224289]
[1770978354852,11.45365523,79.937,79.901,11.3224289]
[1770978355350,11.45365523,79.937,79.902,11.2721]
[1770978356454,11.45365523,79.937,79.907,11.2714]
[1770978358553,11.45365523,79.947,79.915,11.3224289]
[1770978359351,11.45365523,79.957,79.921,11.3224289]
[1770978360352,11.45365523,79.957,79.913,11.2706]
[1770978360557,11.45365523,79.957,79.894,15.03933763]
[1770978360558,11.45365523,79.949,79.901,11.3224289]
[1770978361052,12.0254699,79.939,79.9,11.55853885]
[1770978361359,11.2672,79.938,79.902,11.2721]
[1770978361559,12.0254699,79.937,79.902,11.2721]
[1770978364861,11.2663,79.944,79.908,12.25841877]
[1770978365056,12.0254699,79.95,79.911,12.25841877]
[1770978366756,23.2909699,79.95,79.913,11.2706]
[1770978367553,12.0254699,79.949,79.913,11.2706]
[1770978369558,11.2659,79.947,79.913,11.2706]
[1770978369956,12.0254699,79.946,79.913,11.2706]
[1770978372560,12.0254699,79.939,79.902,11.2721]
[1770978373763,11.2674,79.936,79.902,11.2721]
[1770978375564,23.2928699,79.936,79.902,11.2721]
[1770978376764,12.0254699,79.946,79.91,12.25841877]
[1770978377765,12.0254699,79.939,79.903,11.272]
[1770978378669,12.0254699,79.939,79.903,23.53041877]
[1770978379068,12.0254699,79.939,79.904,12.25841877]
[1770978381176,3.20662843,79.95,79.91,11.55853885]
[1770978381177,11.266,79.947,79.91,11.55853885]
[1770978381371,11.266,79.947,79.911,12.25841877]
[1770978381570,12.0254699,79.946,79.911,12.25841877]
[1770978382771,12.0254699,79.946,79.912,11.2708]
[1770978387269,12.0254699,79.946,79.912,23.52921877]
[1770978387673,11.2649,79.954,79.914,12.25841877]
[1770978388080,23.2903699,79.954,79.915,12.25841877]
[1770978389469,12.0254699,79.949,79.909,12.25841877]
[1770978390378,11.2673,79.937,79.909,12.25841877]
[1770978390684,22.47091931,79.937,79.9,12.1734846]
[1770978390876,11.20361931,79.937,79.9,12.1734846]
[1770978391272,11.20361931,79.937,79.901,12.1734846]
[1770978391878,11.20361931,79.937,79.902,12.1734846]
[1770978392684,11.20361931,79.933,79.902,12.1734846]
[1770978392886,11.20361931,79.933,79.895,12.1734846]
[1770978393383,11.20361931,79.933,79.896,12.1734846]
[1770978393776,11.2682,79.931,79.896,12.1734846]
[1770978394483,22.47181931,79.931,79.896,12.1734846]
[1770978395687,11.20361931,79.931,79.901,11.98074228]
[1770978395892,11.2673,79.937,79.901,11.98074228]
[1770978396592,11.2673,79.937,79.903,11.98074228]
[1770978397891,22.55044213,79.937,79.903,11.98074228]
[1770978398292,11.28314213,79.937,79.907,11.2714]
[1770978398593,11.28314213,79.937,79.903,11.98074228]
[1770978399389,11.28314213,79.937,79.908,11.55853885]
[1770978401098,11.28314213,79.937,79.907,11.55853885]
[1770978406503,11.28314213,79.937,79.905,23.53928113]
[1770978406703,11.28314213,79.937,79.906,11.98074228]
[1770978408098,11.28314213,79.934,79.906,11.98074228]
[1770978410704,11.2669,79.94,79.906,11.98074228]
[1770978410907,11.28314213,79.939,79.906,23.59560448]
[1770978412105,3.20662843,79.95,79.906,23.59560448]
[1770978412106,11.28314213,79.936,79.906,23.59560448]
[1770978413701,11.2675,79.935,79.906,23.59560448]
[1770978414110,11.2675,79.935,79.906,11.98074228]
[1770978415209,22.55064213,79.935,79.906,11.98074228]
[1770978415610,11.28314213,79.935,79.906,11.98074228]
[1770978423118,11.28314213,79.935,79.907,11.80512253]
[1770978430115,11.77915169,79.946,79.913,23.07572253]
[1770978430316,11.77915169,79.946,79.915,11.6148622]
[1770978431718,11.77915169,79.946,79.916,11.2702]
[1770978433024,11.77915169,79.946,79.917,11.80512253]
[1770978433220,11.2653,79.951,79.917,11.80512253]
[1770978433427,99.8,79.978,79.924,11.80512253]
[1770978433428,11.2638,79.962,79.924,11.80512253]
[1770978433622,11.2638,79.962,79.925,11.80512253]
[1770978433818,11.77915169,79.962,79.925,11.80512253]
[1770978434821,3.20756917,79.97,79.925,11.80512253]
[1770978434822,11.77915169,79.956,79.925,11.80512253]
[1770978435019,11.77915169,79.956,79.923,11.6148622]
[1770978435220,11.77915169,79.956,79.917,23.41998473]
[1770978435421,11.77915169,79.956,79.919,23.07492253]
[1770978437628,11.77915169,79.956,79.921,11.2695]
[1770978438628,11.77915169,79.956,79.92,11.80512253]
[1770978439725,11.2651,79.953,79.92,11.80512253]
[1770978439931,11.77915169,79.952,79.92,11.80512253]
[1770978441530,11.2653,79.951,79.92,11.80512253]
[1770978441830,23.04445169,79.951,79.92,11.80512253]
[1770978443732,11.77915169,79.948,79.92,11.80512253]
[1770978444127,11.77915169,79.945,79.916,11.6148622]
[1770978444523,11.77915169,79.945,79.916,23.41998473]
[1770978444728,11.77915169,79.945,79.917,11.80512253]
[1770978451632,12.34700205,79.922,79.905,15.03933763]
[1770978451823,12.34700205,79.931,79.892,11.59645852]
[1770978452025,12.34700205,79.949,79.9,3.20756917]
[1770978452730,12.34700205,79.949,79.91,3.20756917]
[1770978453634,11.2649,79.954,79.91,3.20756917]
[1770978453833,11.2649,79.954,79.911,11.53661378]
[1770978454533,12.34700205,79.953,79.911,11.53661378]
[1770978455136,12.34700205,79.949,79.911,11.53661378]
[1770978456837,11.20461533,79.947,79.911,11.53661378]
[1770978458535,11.20461533,79.947,79.914,11.52201185]
[1770978458739,11.20461533,79.989,79.941,11.52201185]
[1770978458938,11.20461533,79.989,79.903,22.85075119]
[1770978458939,11.20461533,79.989,79.951,11.52201185]
[1770978461842,11.20461533,79.989,79.952,22.78711185]
[1770978462029,11.20461533,79.989,79.953,11.52201185]
[1770978463842,22.46461533,79.989,79.953,11.52201185]
[1770978466542,11.20461533,79.988,79.953,11.52201185]
[1770978469344,22.46501533,79.986,79.953,11.52201185]
[1770978469546,11.20461533,79.986,79.953,11.52201185]
[1770978480553,11.20461533,79.979,79.943,11.52201185]
[1770978481146,11.80304793,79.977,79.943,11.52201185]
[1770978482157,11.80304793,79.977,79.944,11.2663]
[1770978482458,11.80304793,79.977,79.945,12.50964126]
[1770978483053,3.20442779,79.99,79.945,12.50964126]
[1770978483356,103.02442779,79.99,79.945,12.50964126]
[1770978483953,3.20442779,79.99,79.945,12.50964126]
[1770978484155,11.80304793,79.995,79.957,12.50964126]
[1770978484458,99.82,79.997,79.957,12.50964126]
[1770978484655,11.80304793,80.004,79.957,12.50964126]
[1770978485763,11.80304793,79.989,79.941,12.50964126]
[1770978486058,3.20442779,79.98,79.941,12.50964126]
[1770978486261,11.80304793,79.979,79.941,12.50964126]
[1770978486460,11.80304793,79.969,79.921,12.50964126]
[1770978486762,11.80304793,79.968,79.93,12.50964126]
[1770978488759,11.80304793,79.968,79.933,11.2678]
[1770978492268,11.80304793,79.968,79.936,11.2673]
[1770978492767,99.82,79.979,79.92,3.20442779]
[1770978492768,11.80304793,79.961,79.922,12.50964126]
[1770978493561,11.264,79.96,79.923,12.50964126]
[1770978493956,11.80304793,79.961,79.923,12.50964126]
[1770978493957,3.20442779,79.97,79.923,12.50964126]
[1770978494158,15.00747572,79.98,79.939,12.50964126]
[1770978494466,11.80304793,79.979,79.939,12.50964126]
[1770978494859,3.20442779,79.98,79.919,15.03933763]
[1770978494860,11.80304793,79.969,79.928,12.50964126]
[1770978496866,11.80304793,79.969,79.932,12.50964126]
[1770978497560,11.80304793,79.959,79.916,12.50964126]
[1770978498864,11.80304793,79.954,79.917,11.27]
[1770978499565,11.80304793,79.954,79.922,11.2693]
[1770978500866,11.80304793,79.954,79.923,12.50964126]
[1770978501363,11.80304793,79.99,79.941,12.50964126]
[1770978501562,11.80304793,79.99,79.909,480.47839177]
[1770978501563,11.80304793,80.019,79.981,12.50964126]
[1770978502569,11.256,80.017,79.981,12.50964126]
[1770978503272,11.80304793,80.017,79.981,12.50964126]
[1770978505168,11.80304793,80.015,79.968,12.50964126]
[1770978505368,11.80304793,80.015,79.97,3.20442779]
[1770978505770,11.80304793,80.015,79.98,3.20442779]
[1770978505971,11.255,80.024,79.981,12.50964126]
[1770978506470,23.05804793,80.024,79.981,12.50964126]
[1770978506672,11.80304793,80.023,79.981,12.50964126]
[1770978510972,11.54779345,80.034,79.991,11.86727666]
[1770978512472,11.54779345,80.032,79.991,11.86727666]
[1770978515474,12.43189852,80.027,79.991,11.86727666]
[1770978518783,11.2548,80.026,79.991,11.86727666]
[1770978519182,12.43189852,80.025,79.991,11.86727666]
[1770978519385,12.43189852,80.025,79.981,12.7621893]
[1770978520884,3.20442779,80.03,79.981,12.7621893]
[1770978520885,12.43189852,80.017,79.981,12.7621893]
[1770978521478,23.68639852,80.028,79.981,12.7621893]
[1770978521676,23.68639852,80.028,79.951,37.56983763]
[1770978521677,23.68639852,80.028,79.991,12.7621893]
[1770978522786,23.68639852,80.028,79.992,12.7621893]
[1770978523586,12.43189852,80.022,79.99,3.20442779]
[1770978523988,12.43189852,80.022,79.989,12.7621893]
[1770978524187,11.2556,80.021,79.989,12.7621893]
[1770978524389,12.43189852,80.02,79.989,12.7621893]
[1770978525587,12.43189852,80.02,79.989,24.0219893]
[1770978528090,11.2546,80.028,79.991,11.2597]
[1770978528290,11.2546,80.028,79.992,12.7621893]
[1770978528690,23.68649852,80.028,79.992,12.7621893]
[1770978529191,12.43189852,80.027,79.992,12.7621893]
[1770978532495,12.43189852,80.017,79.98,15.96661709]
[1770978532888,11.2564,80.015,79.98,12.7621893]
[1770978533190,12.43189852,80.014,79.98,12.7621893]
[1770978535787,3.20442779,80.02,79.97,3.20442779]
[1770978535788,12.43189852,80.004,79.97,12.7621893]
[1770978538405,12.43189852,80.001,79.96,3.20442779]
[1770978538600,12.43189852,79.999,79.959,12.7621893]
[1770978539302,11.2591,79.995,79.961,12.7621893]
[1770978540093,12.43189852,80.01,79.963,12.7621893]
[1770978540598,12.2022511,80.009,79.963,12.7621893]
[1770978540799,15.40667889,80.02,79.975,11.65241602]
[1770978541002,12.2022511,80.019,79.975,11.65241602]
[1770978542701,11.2572,80.009,79.975,11.65241602]
[1770978546005,11.2561,80.017,79.981,11.65241602]
[1770978547704,11.2561,80.017,79.982,11.2608]
[1770978547905,11.2561,80.017,79.983,11.65241602]
[1770978554314,11.2561,80.017,79.984,11.2605]
[1770978554516,12.2022511,80.029,79.991,11.65241602]
[1770978555707,12.2022511,80.029,79.992,22.91181602]
[1770978555907,12.2022511,80.029,79.993,11.65241602]
[1770978556908,11.2547,80.027,79.993,11.65241602]
[1770978561817,23.4569511,80.027,79.993,11.65241602]
[1770978562004,11.255,80.025,79.993,11.65241602]
[1770978562415,12.2022511,80.026,79.993,11.65241602]
[1770978562620,12.2022511,80.026,79.994,11.2592]
[1770978564928,12.2022511,80.025,79.993,11.65241602]
[1770978565721,11.255,80.024,79.993,11.65241602]
[1770978565920,23.4572511,80.024,79.993,11.65241602]
[1770978567325,12.2022511,80.023,79.993,11.65241602]
[1770978571922,11.97522247,80.034,79.995,12.07952275]
[1770978572119,11.97522247,80.045,80.001,12.07952275]
[1770978573226,11.97522247,80.045,80.0,3.20184105]
[1770978573227,11.97522247,80.057,80.02,3.20184105]
[1770978573423,178.28583542,80.099,80.021,12.07952275]
[1770978573424,11.97522247,80.068,80.021,12.07952275]
[1770978573618,11.97522247,80.068,80.031,12.07952275]
[1770978574722,11.97522247,80.078,80.04,3.20184105]
[1770978574921,11.97522247,80.078,80.041,12.07952275]
[1770978575326,11.2473,80.079,80.041,12.07952275]
[1770978575927,12.67786208,80.088,80.045,12.83451437]
[1770978577223,11.2448,80.097,80.061,12.83451437]
[1770978579332,23.92106208,80.109,80.071,12.83451437]
[1770978579531,12.67786208,80.121,80.081,12.83451437]
[1770978580130,3.20184105,80.12,80.081,12.83451437]
[1770978580632,3.20184105,80.1,80.051,12.83451437]
[1770978580934,11.243,80.11,80.061,12.83451437]
[1770978581129,12.67786208,80.119,80.071,12.83451437]
[1770978582339,12.67786208,80.119,80.07,3.20184105]
[1770978582340,12.67786208,80.119,80.077,12.83451437]
[1770978582535,12.67786208,80.119,80.08,16.03635542]
[1770978582939,11.2404,80.129,80.08,16.03635542]
[1770978583638,12.67786208,80.13,80.092,12.83451437]
[1770978583838,3.20184105,80.14,80.092,12.83451437]
[1770978584041,122.7,80.162,80.07,3.20184105]
[1770978584042,12.67786208,80.119,80.07,3.20184105]
[1770978584245,3.20184105,80.11,80.071,12.83451437]
[1770978584644,3.20184105,80.1,80.061,12.83451437]
[1770978585047,12.67786208,80.099,80.05,16.03635542]
[1770978586142,3.20184105,80.08,80.041,11.2525]
[1770978586357,12.67786208,80.079,80.038,12.83451437]
[1770978586764,12.67786208,80.079,80.039,11.2529]
[1770978586950,12.67786208,80.079,80.04,12.83451437]
[1770978589954,12.67786208,80.059,80.019,12.83451437]
[1770978591364,99.68,80.078,80.008,12.83451437]
[1770978591365,11.2517,80.048,80.008,12.83451437]
[1770978591659,12.67786208,80.047,80.008,12.83451437]
[1770978591863,12.67786208,80.047,79.99,3.20184105]
[1770978591864,12.67786208,80.039,79.996,12.83451437]
[1770978592158,12.67786208,80.039,79.999,11.2585]
[1770978592354,12.67786208,80.039,80.0,12.83451437]
[1770978593065,12.67786208,80.066,80.021,12.83451437]
[1770978594857,23.92706208,80.066,80.022,12.83451437]
[1770978596266,11.25,80.06,80.022,12.83451437]
[1770978597762,12.67786208,80.077,80.033,12.83451437]
[1770978597956,22.4818,80.125,80.05,3.20184105]
[1770978598156,3.20184105,80.1,80.051,12.83451437]
[1770978598360,11.2446,80.099,80.052,11.251]
[1770978598661,11.2446,80.099,80.053,12.83451437]
[1770978599062,12.67786208,80.108,80.053,12.83451437]
[1770978599269,12.67786208,80.108,79.982,99.68]
[1770978599270,12.67786208,80.119,80.07,16.03635542]
[1770978599465,12.67786208,80.119,80.07,12.83451437]
[1770978600067,11.2435,80.106,80.07,12.83451437]
[1770978600367,12.67786208,80.105,80.063,11.2495]
[1770978600569,12.67786208,80.105,80.061,12.45172073]
[1770978600760,12.67786208,80.105,80.07,3.20184105]
[1770978600961,12.67786208,80.105,80.061,12.45172073]
[1770978601468,11.2419,80.118,80.071,12.45172073]
[1770978602066,11.2427,80.112,80.072,11.2482]
[1770978602961,3.20184105,80.12,80.074,11.2479]
[1770978602962,11.93723867,80.111,80.074,11.2479]
[1770978603367,11.93723867,80.111,80.073,12.45172073]
[1770978604273,11.243,80.11,80.073,12.45172073]
[1770978605064,11.93723867,80.107,80.063,11.2494]
[1770978606780,11.2437,80.105,80.063,11.2494]
[1770978609976,23.18093867,80.105,80.063,11.2494]
[1770978610974,23.18093867,80.105,80.07,3.19423447]
[1770978612278,11.93723867,80.102,80.07,3.19423447]
[1770978614580,11.93723867,80.102,80.07,14.44273447]
[1770978615382,11.93723867,80.102,80.07,26.8944552]
[1770978615586,11.243,80.11,80.07,26.8944552]
[1770978616281,11.243,80.11,80.075,11.2477]
[1770978618286,23.18023867,80.11,80.075,11.2477]
[1770978618686,11.93723867,80.109,80.075,11.2477]
[1770978623593,11.2432,80.108,80.075,11.2477]
[1770978628500,11.93723867,80.109,80.075,11.2477]
[1770978629096,11.93723867,80.109,80.08,11.247]
[1770978629298,11.93723867,80.109,80.08,14.44123447]
[1770978631000,11.93723867,80.109,80.071,12.45172073]
[1770978631598,23.05425384,80.102,80.071,12.45172073]
[1770978632196,23.05425384,80.102,80.031,22.85075119]
[1770978632197,11.81005384,80.094,80.058,11.2502]
[1770978633507,11.81005384,80.094,80.06,3.19423447]
[1770978633701,11.81005384,80.094,80.06,15.59883638]
[1770978633902,11.81005384,80.094,80.061,12.40460191]
[1770978634108,11.81005384,80.119,80.071,12.40460191]
[1770978634410,11.244,80.103,80.071,12.40460191]
[1770978635011,11.2447,80.098,80.071,12.40460191]
[1770978635617,11.2435,80.107,80.071,12.40460191]
[1770978636709,11.2435,80.107,80.072,11.2482]
[1770978637103,11.2435,80.107,80.073,12.7303318]
[1770978642720,11.2435,80.107,80.057,22.85075119]
[1770978642721,12.14698876,80.129,80.081,12.7303318]
[1770978644721,12.14698876,80.107,80.067,27.76966943]
[1770978644927,12.14698876,80.107,80.07,3.19423447]
[1770978645621,23.39078876,80.104,80.07,3.19423447]
[1770978645924,12.14698876,80.103,80.07,3.19423447]
[1770978646523,12.14698876,80.103,80.07,15.92456627]
[1770978647326,12.14698876,80.11,80.072,11.2482]
[1770978647516,12.14698876,80.121,80.081,12.7303318]
[1770978647720,12.14698876,80.131,80.091,12.7303318]
[1770978647923,23.38798876,80.125,80.091,12.7303318]
[1770978648222,12.14698876,80.124,80.091,12.7303318]
[1770978648421,11.2426,80.113,80.073,15.03933763]
[1770978648623,12.14698876,80.112,80.07,14.44273447]
[1770978649221,12.14698876,80.112,80.076,11.2477]
[1770978649931,23.39028876,80.108,80.07,3.19423447]
[1770978650334,12.14698876,80.104,80.063,15.03933763]
[1770978650538,12.14698876,80.104,80.064,12.7303318]
[1770978651033,12.14698876,80.104,80.07,3.19423447]
[1770978651633,12.14698876,80.102,80.06,3.19423447]
[1770978652028,12.14698876,80.102,80.061,12.7303318]
[1770978653836,23.39108876,80.102,80.062,12.7303318]
[1770978655038,23.39108876,80.102,80.064,11.2493]
[1770978655340,12.14698876,80.129,80.081,12.7303318]
[1770978656839,11.2417,80.119,80.082,12.7303318]
[1770978657042,12.14698876,80.118,80.076,15.03933763]
[1770978657341,12.14698876,80.118,80.074,12.7303318]
[1770978658340,12.14698876,80.118,80.074,23.9782318]
[1770978658838,11.2418,80.119,80.079,12.7303318]
[1770978659041,11.2418,80.119,80.081,12.7303318]
[1770978659537,23.38878876,80.119,80.081,12.7303318]
[1770978659738,12.14698876,80.118,80.083,11.2467]
[1770978662238,11.2421,80.117,80.081,12.7303318]
[1770978662432,12.14698876,80.118,80.07,15.98640148]
[1770978663443,13.11297879,80.105,80.07,12.79216701]
[1770978664036,13.11297879,80.129,80.07,15.98640148]
[1770978664643,13.11297879,80.118,80.081,12.79216701]
[1770978665736,13.11297879,80.118,80.081,24.03906701]
[1770978667045,13.11297879,80.118,80.083,11.2467]
[1770978667243,13.11297879,80.118,80.083,24.03886701]
[1770978667443,13.11297879,80.118,80.084,12.79216701]
[1770978669442,13.11297879,80.129,80.1,3.19275933]
[1770978669843,13.11297879,80.129,80.091,12.79216701]
[1770978670741,13.11297879,80.129,80.092,11.2454]
[1770978673747,13.11297879,80.119,80.072,15.03933763]
[1770978673950,13.11297879,80.119,80.07,3.19275933]
[1770978674156,13.11297879,80.109,80.06,3.19275933]
[1770978674347,11.2444,80.1,80.062,12.79216701]
[1770978674652,13.11297879,80.099,80.062,12.79216701]
[1770978674847,13.11297879,80.099,80.07,3.19275933]
[1770978675456,13.11297879,80.099,80.062,12.79216701]
[1770978676754,11.2446,80.098,80.062,12.79216701]
[1770978676961,13.11297879,80.099,80.062,12.79216701]
[1770978677350,13.11297879,80.097,80.062,12.79216701]
[1770978677852,13.11297879,80.097,80.06,3.19275933]
[1770978678155,13.11297879,80.097,80.062,11.2497]
[1770978681956,13.11297879,80.096,80.06,3.19275933]
[1770978682857,3.19275933,80.11,80.06,3.19275933]
[1770978682858,13.11297879,80.094,80.06,3.19275933]
[1770978683159,13.11297879,80.094,80.04,3.19275933]
[1770978683750,13.11297879,80.078,80.04,3.19275933]
[1770978684253,13.11297879,80.078,80.03,3.19275933]
[1770978685857,24.36177879,80.069,80.03,3.19275933]
[1770978686161,13.11297879,80.068,80.03,3.19275933]
[1770978686461,13.11297879,80.082,80.041,12.79216701]
[1770978687755,11.248,80.074,80.041,12.79216701]
[1770978688355,24.36097879,80.074,80.041,12.79216701]
[1770978688750,13.11297879,80.067,80.03,3.19275933]
[1770978688959,13.11297879,80.067,80.03,15.98492634]
[1770978689854,24.36217879,80.066,80.03,15.98492634]
[1770978690058,13.11297879,80.065,80.03,15.98492634]
[1770978690857,13.11297879,80.065,80.031,24.36052941]
[1770978691863,13.11297879,80.065,80.02,16.29928874]
[1770978692068,13.04712786,80.059,80.01,3.19275933]
[1770978692962,13.04712786,80.037,79.999,11.2584]
[1770978693161,13.04712786,80.037,79.99,3.19275933]
[1770978693460,13.04712786,80.037,79.99,16.29928874]
[1770978693764,11.2542,80.03,79.991,11.2595]
[1770978693964,13.04712786,80.029,79.99,16.29928874]
[1770978695760,13.04712786,80.029,79.992,12.21127556]
[1770978696461,24.30152786,80.029,79.992,12.21127556]
[1770978699069,12.72857055,80.025,79.992,12.21127556]
[1770978699764,12.72857055,80.025,79.978,12.21127556]
[1770978699965,12.72857055,80.019,79.978,12.21127556]
[1770978700563,11.2571,80.009,79.978,12.21127556]
[1770978701170,12.72857055,80.008,79.97,3.19275933]
[1770978701359,12.72857055,80.008,79.967,23.47417556]
[1770978701559,11.2576,80.006,79.967,23.47417556]
[1770978701763,12.72857055,80.005,79.967,23.47417556]
[1770978702365,12.72857055,80.005,79.967,12.21127556]
[1770978703372,12.72857055,80.005,79.969,11.2627]
[1770978703574,11.2569,80.011,79.971,12.21127556]
[1770978704471,15.92132988,80.0,79.95,12.21127556]
[1770978704671,12.72857055,79.999,79.951,12.21127556]
[1770978704871,12.72857055,79.999,79.96,3.19275933]
[1770978707573,12.72857055,80.041,79.99,3.19275933]
[1770978707780,23.13908332,80.125,79.962,37.49]
[1770978707781,3.19275933,80.08,79.983,37.49]
[1770978707984,12.72857055,80.079,80.04,3.19275933]
[1770978708879,11.2498,80.062,80.04,3.19275933]
[1770978709082,11.2498,80.062,80.019,12.21127556]
[1770978709379,11.2505,80.057,80.03,3.19275933]
[1770978709975,11.2511,80.053,80.03,3.19275933]
[1770978711283,12.72857055,80.056,80.007,12.21127556]
[1770978711284,12.72857055,80.056,80.02,3.19275933]
[1770978711585,12.72857055,80.056,80.03,3.19275933]
[1770978713381,11.25,80.06,80.03,3.19275933]
[1770978715787,11.25,80.06,79.99,99.74]
[1770978715788,12.72857055,80.053,80.01,3.19275933]
[1770978717886,12.72857055,80.048,80.02,3.19275933]
[1770978718082,12.72857055,80.081,80.04,3.19275933]
[1770978718390,12.72857055,80.094,80.07,3.19275933]
[1770978718691,12.72857055,80.119,80.07,3.19275933]
[1770978718888,12.72857055,80.119,80.058,12.21127556]
[1770978719889,12.72857055,80.109,80.058,12.21127556]
[1770978720897,11.2443,80.1,80.058,12.21127556]
[1770978723297,11.2443,80.1,80.061,11.56348337]
[1770978724396,11.2449,80.096,80.061,11.56348337]
[1770978732204,11.69876832,80.099,80.061,11.56348337]
[1770978732810,11.2447,80.098,80.062,11.2497]
[1770978733509,11.2447,80.098,80.062,22.81318337]
[1770978735314,11.69876832,80.099,80.062,22.81318337]
[1770978737712,11.2447,80.098,80.062,22.81318337]
[1770978738914,11.69876832,80.099,80.062,22.81318337]
[1770978738915,11.2455,80.092,80.062,11.56348337]
[1770978739218,11.2455,80.092,80.056,11.2504]
[1770978739813,11.2455,80.092,80.058,11.2501]
[1770978740312,11.2455,80.092,80.06,3.19469845]
[1770978741610,11.2455,80.092,80.058,11.2501]